Workbook

Sheet 시작
B1: 이 서식 파일 정보
B2: 고객 활동, 판매 비용, 기타 비용을 추적하는 고객 수익성 분석 서식입니다.
B3: 각종 표에 회사 이름, 날짜, 세부 정보를 입력하세요.
B4: 수식이 포함된 셀 및 요약 메트릭 표의 값은 자동으로 계산되고 차트가 업데이트됩니다.
B5: 참고:
B6: 고객 수익성 워크시트의 A열에서 더 자세한 지침을 확인할 수 있습니다. 이 텍스트는 일부러 숨겨 놓았습니다. 텍스트를 제거하려면 A열을 선택한 다음 [삭제]를 선택합니다. 텍스트를 표시하려면 A열을 선택한 다음 글꼴 색상을 변경합니다.
B7: 워크시트에 있는 표에 대해 자세히 알아보려면 표 안에서 SHIFT 키를 누른 채 F10 키를 누르고 [표] 옵션을 선택한 다음, [대체 텍스트]를 선택합니다.

Sheet 고객 수익성
A1: 이 워크시트에 고객 수익성 분석을 작성합니다. 이 워크시트의 사용 방법에 대한 유용한 지침은 이 열의 셀에 있습니다. 아래쪽 화살표를 사용하여 시작할 수 있습니다.
A2: 오른쪽 셀에 회사 이름을 입력합니다. | B2: 회사 이름
A3: 오른쪽 셀에 이 워크시트의 제목이 표시됩니다. | B3: 고객 수익성 분석
A4: 오른쪽 셀에 날짜를 입력합니다. | B4: 날짜
A5: 오른쪽 셀에 팁이 표시됩니다. | B5: 회색 셀은 자동으로 계산됩니다. 회식 셀에는 데이터를 입력할 필요가 없습니다.
A6: 오른쪽 셀에서 시작하는 고객 활동 표에 세부 정보를 입력합니다. 다음 지침은 A12 셀에 있습니다. | B6: 고객 활동: | C6: 세그먼트 이름 1 | D6: 세그먼트 이름 2 | E6: 세그먼트 이름 3 | F6: 합계
B7: 활성 고객 수—기간의 시작 | C7: 5 | D7: 8 | E7: 8 | F7: =SUM(C7:E7) -> 21
B8: 추가된 고객 수 | C8: 2 | D8: 4 | E8: 4 | F8: =SUM(C8:E8) -> 10
B9: 유출된/해지한 고객 수 | C9: (1) | D9: (2) | E9: (2) | F9: =SUM(C9:E9) -> (5)
B10: 활성 고객 수—기간의 끝 | C10: =SUBTOTAL(109,고객활동[세그먼트 이름 1]) -> 6 | D10: =SUBTOTAL(109,고객활동[세그먼트 이름 2]) -> 10 | E10: =SUBTOTAL(109,고객활동[세그먼트 이름 3]) -> 10 | F10: =SUBTOTAL(109,고객활동[합계]) -> 26
A12: 오른쪽 셀에서 시작하는 수익성 분석 표에 세부 정보를 입력합니다. 다음 지침은 셀 A16에 있습니다. | B12: 수익성 분석: | C12: 세그먼트 이름 1 | D12: 세그먼트 이름 2 | E12: 세그먼트 이름 3 | F12: 합계
B13: 세그먼트당 매출 | C13: ₩1,500,000.00 | D13: ₩1,800,000.00 | E13: ₩2,500,000.00 | F13: =SUM(수익성분석[[#This Row],[세그먼트 이름 1]:[세그먼트 이름 3]]) -> ₩5,800,000.00
B14: 가중치 | C14: =+C13/$F$13 -> 26% | D14: =+D13/$F$13 -> 31% | E14: =+E13/$F$13 -> 43% | F14: =SUM(수익성분석[[#This Row],[세그먼트 이름 1]:[세그먼트 이름 3]]) -> 100%
A16: 오른쪽 셀에서 시작하는 판매 비용 표에 세부 정보를 입력합니다. 다음 지침은 셀 A23에 있습니다. | B16: 판매 비용: | C16: 세그먼트 이름 1 | D16: 세그먼트 이름 2 | E16: 세그먼트 이름 3 | F16: 합계
B17: 상시 서비스 및 지원 비용 | C17: ₩1,000,000.00 | D17: ₩1,400,000.00 | E17: ₩1,400,000.00 | F17: =SUM(C17:E17) -> ₩3,800,000.00
B18: 기타 직접 고객 비용 | C18: ₩200,000.00 | D18: ₩100,000.00 | E18: ₩100,000.00 | F18: =SUM(C18:E18) -> ₩400,000.00
B19: 판매 비용 합계 | C19: =SUM(C17:C18) -> ₩1,200,000.00 | D19: =SUM(D17:D18) -> ₩1,500,000.00 | E19: =SUM(E17:E18) -> ₩1,500,000.00 | F19: =SUM(F17:F18) -> ₩4,200,000.00
B20: 매출 총 이익 | C20: =+C13-C19 -> ₩300,000.00 | D20: =+D13-D19 -> ₩300,000.00 | E20: =+E13-E19 -> ₩1,000,000.00 | F20: =+F13-F19 -> ₩1,600,000.00
B21: 가중치 | C21: =MAX(0, MIN(1,C20/$F$20)) -> 19% | D21: =MAX(0, MIN(1,D20/$F$20)) -> 19% | E21: =MAX(0, MIN(1,E20/$F$20)) -> 63% | F21: =SUM(C21:E21) -> 100%
A23: 오른쪽 셀에서 시작하는 기타 비용 표에 세부 정보를 입력합니다. 다음 지침은 셀 A31에 있습니다. | B23: 기타 비용: | C23: 세그먼트 이름 1 | D23: 세그먼트 이름 2 | E23: 세그먼트 이름 3 | F23: 합계
B24: 고객 확보 | C24: ₩105,000.00 | D24: ₩120,000.00 | E24: ₩235,000.00 | F24: =SUM(기타비용[[#This Row],[세그먼트 이름 1]:[세그먼트 이름 3]]) -> ₩460,000.00
B25: 고객 마케팅 | C25: ₩150,000.00 | D25: ₩125,000.00 | E25: ₩275,000.00 | F25: =SUM(C25:E25) -> ₩550,000.00
B26: 고객 해지 | C26: ₩80,000.00 | D26: ₩190,000.00 | E26: ₩140,000.00 | F26: =SUM(C26:E26) -> ₩410,000.00
B27: 기타 고객 비용 합계 | C27: =SUM(C24:C26) -> ₩335,000.00 | D27: =SUM(D24:D26) -> ₩435,000.00 | E27: =SUM(E24:E26) -> ₩650,000.00 | F27: =SUM(F24:F26) -> ₩1,420,000.00
B28: 세그먼트별 고객 수익 | C28: =+C20-C27 -> (₩35,000.00) | D28: =+D20-D27 -> (₩135,000.00) | E28: =+E20-E27 -> ₩350,000.00 | F28: =SUM(C28:E28) -> ₩180,000.00
B29: 가중치 | C29: =MAX(0,MIN(1, C28/$F$28)) -> 0% | D29: =MAX(0,MIN(1, D28/$F$28)) -> 0% | E29: =MAX(0,MIN(1, E28/$F$28)) -> 100% | F29: =SUM(C29:E29) -> 100%
A31: 오른쪽 셀에서 시작하는 요약 메트릭은 자동으로 업데이트됩니다. 다음 지침은 셀 A37에 있습니다. | B31: 요약 메트릭: | C31: 세그먼트 이름 1 | D31: 세그먼트 이름 2 | E31: 세그먼트 이름 3 | F31: 추세
B32: 확보한 고객당 평균 비용 | C32: =+C24/C8 -> ₩52,500.00 | D32: =+D24/D8 -> ₩30,000.00 | E32: =+E24/E8 -> ₩58,750.00
B33: 해지한 고객당 평균 비용 | C33: =-C26/C9 -> ₩80,000.00 | D33: =-D26/D9 -> ₩95,000.00 | E33: =-E26/E9 -> ₩70,000.00
B34: 활성 고객당 평균 마케팅 비용 | C34: =+C26/고객활동[[#Totals],[세그먼트 이름 1]] -> ₩13,333.33 | D34: =+D25/고객활동[[#Totals],[세그먼트 이름 2]] -> ₩12,500.00 | E34: =+E25/고객활동[[#Totals],[세그먼트 이름 3]] -> ₩27,500.00
B35: 고객당 평균 수익(손해) | C35: =+C29/고객활동[[#Totals],[세그먼트 이름 1]] -> ₩0.00 | D35: =+D28/고객활동[[#Totals],[세그먼트 이름 2]] -> (₩13,500.00) | E35: =+E28/고객활동[[#Totals],[세그먼트 이름 3]] -> ₩35,000.00
A37: 오른쪽 셀에는 고객 세그먼트별 요약 메트릭을 보여주는 묶은 세로 막대형 차트가 있습니다. | B37: 이 셀에는 고객 세그먼트별 요약 메트릭을 보여주는 묶은 세로 막대형 차트가 있습니다.
